[Event "1000GM Spring Break Schev-B 2024"]
[Site "San Jose"]
[Date "2024.03.31"]
[Round "3.1"]
[White "Karunakaran, Kapilan"]
[Black "Rodi, Luis Ernesto"]
[Result "1/2-1/2"]
[ECO "A41"]
[WhiteElo "1965"]
[BlackElo "2193"]
[Annotator "RC"]
[PlyCount "133"]
[EventDate "2024.03.28"]
[EventType "schev"]
[EventCountry "USA"]
[SourceTitle "playchess.com"]
[Source "ChessBase"]
[SourceQuality "1"]
[TimeControl "5400+30"]

1. d4 {[%emt 0:00:02]} d6 {[%emt 0:00:45]} 2. c4 {[%emt 0:00:31]} g6 {[%emt 0:00:12]} 3. Nc3 {[%emt 0:00:08]} Bg7 {[%emt 0:00:08]} 4. Nf3 {[%emt 0:00:39]} e5 {[%emt 0:00:25]} 5. d5 {[%emt 0:01:32]} f5 {[%emt 0:01:03]} 6. e4 {[%emt 0:01:31]} Nf6 {[%emt 0:00:29]} 7. Bd3 {[%emt 0:05:55]} Na6 {[%emt 0:00:48]} 8. Be3 {[%emt 0:05:11]} O-O {[%emt 0:00:37]} 9. a3 {[%emt 0:00:49]} c5 {[%emt 0:02:29]} 10. Qc2 {[%emt 0:10:20]} f4 {[%emt 0:16:45]} 11. Bd2 {[%emt 0:00:53]} Nc7 {[%emt 0:00:09]} 12. Ke2 {[%emt 0:18:07]} Bd7 {[%emt 0:01:21]} 13. b4 {[%emt 0:03:32]} Na6 {[%emt 0:06:17]} 14. Rhb1 {[%emt 0:11:17]} h6 {[%emt 0:04:03]} 15. Be1 {[%emt 0:08:26]} g5 {[%emt 0:00:41]} 16. Nd2 {[%emt 0:00:21]} Qe8 {[%emt 0:01:04]} 17. f3 {[%emt 0:05:04]} g4 {[%emt 0:04:02]} 18. Bf2 {[%emt 0:00:51]} b6 {[%emt 0:01:22]} 19. Nb5 {[%emt 0:05:22]} g3 {[%emt 0:09:28]} 20. hxg3 {[%emt 0:05:39]} fxg3 {[%emt 0:00:07]} 21. Be3 {[%emt 0:00:34]} Nh5 {[%emt 0:04:15]} 22. Nxd6 {[%emt 0:03:01]} Qe7 {[%emt 0:00:18]} 23. Nb5 {[%emt 0:01:20]} Nf4+ {[%emt 0:02:15]} 24. Bxf4 {[%emt 0:00:09]} exf4 {[%emt 0:00:10]} 25. Ra2 {[%emt 0:05:46]} Rfc8 {[%emt 0:02:45]} 26. Qa4 {[%emt 0:02:10]} Nc7 {[%emt 0:02:01]} 27. Qb3 {[%emt 0:00:21]} Ne8 {[%emt 0:00:15]} 28. Rh1 {[%emt 0:00:21]} Qe5 {[%emt 0:00:40]} 29. Rc2 {[%emt 0:01:07]} a6 {[%emt 0:01:30]} 30. Nc3 {[%emt 0:00:04]} Nd6 {[%emt 0:00:06]} 31. Kf1 {[%emt 0:01:34]} Re8 {[%emt 0:01:53]} 32. Ne2 {[%emt 0:00:43]} Rf8 {[%emt 0:00:58]} 33. Nb1 {[%emt 0:02:32]} Rab8 {[%emt 0:00:40]} 34. Nbc3 {[%emt 0:00:08]} Qg5 {[%emt 0:00:34]} 35. Na4 {[%emt 0:00:55]} Nf7 {[%emt 0:00:30]} 36. b5 {[%emt 0:00:47]} a5 {[%emt 0:00:28]} 37. Nb2 {[%emt 0:00:07]} Ne5 {[%emt 0:00:11]} 38. Ng1 {[%emt 0:00:37]} h5 {[%emt 0:01:25]} 39. Be2 {[%emt 0:00:07]} h4 {[%emt 0:00:40]} 40. Nh3 {[%emt 0:00:51]} Qf6 {[%emt 0:00:07]} 41. Nd3 {[%emt 0:00:44]} Ng6 {[%emt 0:00:09]} 42. Qb2 {[%emt 0:00:41]} Qe7 {[%emt 0:00:51]} 43. Qc1 {[%emt 0:00:07]} Qf6 {[%emt 0:01:59]} 44. Qb2 {[%emt 0:00:07]} Qd6 {[%emt 0:00:06]} 45. Qc1 {[%emt 0:00:08]} Bd4 {[%emt 0:00:11]} 46. a4 {[%emt 0:00:26]} Qf6 {[%emt 0:00:24]} 47. Qd2 {[%emt 0:01:06]} Rbe8 {[%emt 0:00:32]} 48. Qc1 {[%emt 0:00:49]} Re7 {[%emt 0:04:32]} 49. Ke1 {[%emt 0:00:28]} Ref7 {[%emt 0:04:11]} 50. Kd1 {[%emt 0:00:11]} Qd6 {[%emt 0:00:56]} 51. Ra2 {[%emt 0:00:19]} Qf6 {[%emt 0:01:57]} 52. Kc2 {[%emt 0:00:42]} Re7 {[%emt 0:03:24]} 53. Kb3 {[%emt 0:00:14]} Kf7 {[%emt 0:03:02]} 54. Nhxf4 {[%emt 0:01:09]} Nxf4 {[%emt 0:01:33]} 55. Qxf4 {[%emt 0:00:09]} h3 {[%emt 0:00:55]} 56. Bf1 {[%emt 0:01:04]} Ke8 {[%emt 0:04:46]} 57. Qb8+ {[%emt 0:00:10]} Kf7 {[%emt 0:00:04]} 58. Qxg3 {[%emt 0:00:16]} Ke8 {[%emt 0:00:25]} 59. Qb8+ {[%emt 0:00:11]} Kf7 {[%emt 0:00:01]} 60. Qf4 {[%emt 0:00:16]} Ke8 {[%emt 0:00:11]} 61. Qxf6 {[%emt 0:00:55]} Rxf6 {[%emt 0:00:01]} 62. Ne1 {[%emt 0:01:54]} Rh6 {[%emt 0:01:16]} 63. gxh3 {[%emt 0:00:00]} Reh7 {[%emt 0:00:03]} 64. Nd3 {[%emt 0:00:03]} Rh4 {[%emt 0:01:07]} 65. Re2 {[%emt 0:00:45]} Ke7 {[%emt 0:00:53]} 66. e5 {[%emt 0:00:14]} Bf5 {[%emt 0:00:04]} 67. Nf2 {[%emt 0:00:43]} 1/2-1/2

[Event "1000GM Spring Break Schev-B 2024"]
[Site "San Jose"]
[Date "2024.03.31"]
[Round "3.2"]
[White "Pulijala, Akshaj"]
[Black "Solis Castro, Angel Alejan"]
[Result "1/2-1/2"]
[ECO "B13"]
[WhiteElo "1815"]
[BlackElo "2071"]
[Annotator "RC"]
[PlyCount "27"]
[EventDate "2024.03.28"]
[EventType "schev"]
[EventCountry "USA"]
[SourceTitle "playchess.com"]
[Source "ChessBase"]
[SourceQuality "1"]
[TimeControl "5400+30"]

1. d4 Nf6 2. Nc3 d5 3. Bf4 c5 4. e3 cxd4 5. exd4 a6 6. Nf3 Nc6 7. Bd3 Bg4 8. Be2 Rc8 9. O-O e6 10. Ne5 Bxe2 11. Nxe2 Bd6 12. Nc1 O-O 13. c3 {[%emt 0:06:30]} b5 {[%emt 0:06:30]} 14. Qe2 {[%emt 0:29:37]} 1/2-1/2

[Event "1000GM Spring Break Schev-B 2024"]
[Site "San Jose"]
[Date "2024.03.31"]
[Round "3.3"]
[White "Gongora Montes, Benjamin"]
[Black "Sawhney, Yuvraj Singh"]
[Result "1-0"]
[ECO "A48"]
[WhiteElo "2106"]
[BlackElo "1846"]
[Annotator "RC"]
[PlyCount "88"]
[EventDate "2024.03.28"]
[EventType "schev"]
[EventCountry "USA"]
[SourceTitle "playchess.com"]
[Source "ChessBase"]
[SourceQuality "1"]
[TimeControl "5400+30"]

1. d4 {[%emt 1:31:00]} Nf6 {[%emt 0:00:04]} 2. Nf3 {[%emt 0:00:00]} g6 {[%emt 0:00:08]} 3. Bg5 {[%emt 0:00:00]} Ne4 {[%emt 0:00:15]} 4. Bf4 {[%emt 0:00:00]} Bg7 {[%emt 0:00:22]} 5. Nbd2 {[%emt 0:00:00]} d5 {[%emt 0:00:36]} 6. e3 {[%emt 0:00:00]} c5 {[%emt 0:00:16]} 7. c3 {[%emt 0:00:00]} Nc6 {[%emt 0:01:14]} 8. Nxe4 {[%emt 0:00:00]} dxe4 {[%emt 0:00:05]} 9. Ng5 {[%emt 0:00:00]} cxd4 {[%emt 0:00:43]} 10. exd4 {[%emt 0:00:00]} Qd5 {[%emt 0:01:07]} 11. f3 {[%emt 0:00:00]} f5 {[%emt 0:04:15]} 12. fxe4 {[%emt 0:00:00]} fxe4 {[%emt 0:00:13]} 13. Qb3 {[%emt 0:00:00]} Qxb3 {[%emt 0:02:19]} 14. axb3 {[%emt 0:00:00]} e5 {[%emt 0:00:22]} 15. dxe5 {[%emt 0:00:00]} Nxe5 {[%emt 0:00:33]} 16. Nxe4 {[%emt 0:00:00]} O-O {[%emt 0:00:22]} 17. Bg3 {[%emt 0:00:00]} Bf5 {[%emt 0:11:13]} 18. Nd6 {[%emt 0:00:00]} b6 {[%emt 0:03:17]} 19. Nxf5 {[%emt 0:00:00]} Rxf5 {[%emt 0:01:47]} 20. Be2 {[%emt 0:00:00]} Bh6 {[%emt 0:01:31]} 21. Rf1 {[%emt 0:00:00]} Rxf1+ {[%emt 0:01:44]} 22. Kxf1 {[%emt 0:00:00]} Bg7 {[%emt 0:02:18]} 23. b4 {[%emt 0:00:00]} Rf8+ {[%emt 0:00:32]} 24. Kg1 {[%emt 0:00:00]} Nc6 {[%emt 0:01:00]} 25. Bf3 {[%emt 0:00:00]} Rc8 {[%emt 0:01:01]} 26. Bd5+ {[%emt 0:00:00]} Kh8 {[%emt 0:00:15]} 27. Bxc6 {[%emt 0:00:00]} Rxc6 {[%emt 0:00:12]} 28. Ra4 {[%emt 0:13:30]} a6 29. Rxa6 {[%emt 0:00:00]} Bh6 {[%emt 0:01:07]} 30. Ra7 {[%emt 0:00:00]} Kg8 {[%emt 0:00:34]} 31. Be5 {[%emt 0:00:00]} Re6 {[%emt 0:00:20]} 32. Bd4 {[%emt 0:00:00]} Bf4 {[%emt 1:06:45]} 33. Kf2 Bc1 {[%emt 0:00:00]} 34. b3 {[%emt 0:00:00]} Bb2 {[%emt 0:00:00]} 35. Rg7+ {[%emt 0:00:00]} Kf8 {[%emt 0:00:00]} 36. Rxh7 {[%emt 0:00:00]} Rc6 {[%emt 0:00:00]} 37. b5 {[%emt 0:00:00]} Re6 {[%emt 0:00:00]} 38. h4 {[%emt 0:00:00]} Bc1 {[%emt 0:00:00]} 39. Rb7 {[%emt 0:00:00]} Bd2 {[%emt 0:00:00]} 40. Kf3 {[%emt 0:00:00]} Be1 {[%emt 0:00:00]} 41. g3 {[%emt 0:00:00]} Bd2 {[%emt 0:00:00]} 42. c4 {[%emt 0:00:00]} Bb4 {[%emt 0:00:00]} 43. Rxb6 {[%emt 0:00:00]} Kf7 {[%emt 0:00:00]} 44. Rxe6 {[%emt 0:00:00]} Kxe6 {[%emt 0:00:00]} 1-0

[Event "1000GM Spring Break Schev-B 2024"]
[Site "San Jose"]
[Date "2024.03.31"]
[Round "3.4"]
[White "Dominguez Aguilar, Guillermo"]
[Black "Xia, Joshua"]
[Result "1-0"]
[ECO "B23"]
[WhiteElo "2284"]
[BlackElo "1938"]
[Annotator "RC"]
[PlyCount "103"]
[EventDate "2024.03.28"]
[EventType "schev"]
[EventCountry "USA"]
[SourceTitle "playchess.com"]
[Source "ChessBase"]
[SourceQuality "1"]
[TimeControl "5400+30"]

1. e4 {[%emt 0:00:04]} c5 {[%emt 0:00:02]} 2. Nc3 {[%emt 0:00:21]} d6 {[%emt 0:00:06]} 3. f4 {[%emt 0:00:11]} Nc6 {[%emt 0:00:31]} 4. Nf3 {[%emt 0:00:15]} g6 {[%emt 0:00:09]} 5. Bb5 {[%emt 0:01:22]} Bg7 {[%emt 0:01:25]} 6. O-O {[%emt 0:00:17]} Bd7 {[%emt 0:00:27]} 7. d3 {[%emt 0:01:40]} e6 {[%emt 0:01:03]} 8. Qe1 {[%emt 0:01:49]} Nge7 {[%emt 0:00:40]} 9. Bxc6 {[%emt 0:04:43]} Bxc6 {[%emt 0:01:19]} 10. Qh4 {[%emt 0:00:34]} Qb6 {[%emt 0:03:45]} 11. Kh1 {[%emt 0:00:43]} Bd7 {[%emt 1:26:33]} 12. Nd1 {[%emt 1:24:31]} Bc6 {[%emt 0:00:00]} 13. Ne3 {[%emt 0:00:00]} Qc7 {[%emt 0:00:00]} 14. Rb1 {[%emt 0:00:00]} d5 {[%emt 0:00:00]} 15. e5 {[%emt 0:00:00]} d4 {[%emt 0:00:00]} 16. Nc4 {[%emt 0:00:00]} Nf5 {[%emt 0:00:00]} 17. Qf2 {[%emt 0:00:00]} b5 {[%emt 0:00:00]} 18. Na3 {[%emt 0:00:00]} Qb7 {[%emt 0:00:00]} 19. c3 {[%emt 0:00:00]} Rd8 {[%emt 0:00:00]} 20. c4 {[%emt 0:00:00]} b4 {[%emt 0:00:00]} 21. Nc2 {[%emt 0:00:00]} a5 {[%emt 0:00:00]} 22. Bd2 {[%emt 0:00:00]} b3 {[%emt 0:00:00]} 23. axb3 {[%emt 0:00:00]} Qxb3 {[%emt 0:00:00]} 24. Bxa5 {[%emt 0:00:00]} Ra8 {[%emt 0:00:00]} 25. Qd2 {[%emt 0:00:00]} Bh6 {[%emt 0:00:00]} 26. Bc7 {[%emt 0:00:00]} O-O {[%emt 0:00:00]} 27. Bd6 {[%emt 0:00:00]} Rfc8 {[%emt 0:00:00]} 28. Ng5 {[%emt 0:00:00]} Bb7 {[%emt 0:00:00]} 29. Ne4 {[%emt 0:00:00]} Bxe4 {[%emt 0:00:00]} 30. dxe4 {[%emt 0:00:00]} Nxd6 {[%emt 0:09:30]} 31. exd6 {[%emt 0:00:00]} e5 {[%emt 0:00:00]} 32. Qf2 {[%emt 0:00:00]} exf4 {[%emt 0:00:00]} 33. Na3 {[%emt 0:00:00]} Rcb8 {[%emt 0:00:00]} 34. Nb5 {[%emt 0:00:00]} Qxc4 {[%emt 0:00:00]} 35. Nc7 {[%emt 0:00:00]} Ra2 {[%emt 0:00:00]} 36. Qh4 {[%emt 0:00:00]} Raxb2 {[%emt 0:00:00]} 37. Rbe1 {[%emt 0:00:00]} Qc2 {[%emt 0:00:00]} 38. Rg1 {[%emt 0:00:00]} Bf8 {[%emt 0:00:00]} 39. d7 {[%emt 0:00:00]} f3 {[%emt 0:00:00]} 40. gxf3 {[%emt 0:00:00]} Be7 {[%emt 0:00:00]} 41. Qg3 {[%emt 0:00:00]} Rd8 {[%emt 0:01:44]} 42. Ne8 {[%emt 0:15:00]} Rxd7 {[%emt 0:01:47]} 43. Qe5 {[%emt 0:00:00]} f6 {[%emt 0:00:25]} 44. Nxf6+ {[%emt 0:00:00]} Bxf6 {[%emt 0:00:42]} 45. Qe8+ {[%emt 0:00:00]} Kg7 {[%emt 0:00:14]} 46. Qxd7+ {[%emt 0:00:00]} Kg8 {[%emt 0:00:36]} 47. Qh3 {[%emt 0:00:00]} d3 {[%emt 0:01:22]} 48. e5 {[%emt 0:00:00]} Be7 {[%emt 0:00:22]} 49. Ra1 {[%emt 0:00:00]} Kg7 {[%emt 0:01:47]} 50. Ra7 {[%emt 0:00:00]} h5 {[%emt 0:00:19]} 51. Rxe7+ {[%emt 0:00:00]} Kh6 {[%emt 0:00:13]} 52. Qg3 {[%emt 0:00:00]} 1-0

[Event "1000GM Spring Break Schev-B 2024"]
[Site "San Jose"]
[Date "2024.03.31"]
[Round "3.5"]
[White "Rajaram, Anika"]
[Black "Varela Velazquez, Carlos Francisco"]
[Result "0-1"]
[ECO "E03"]
[WhiteElo "1850"]
[BlackElo "2113"]
[Annotator "RC"]
[PlyCount "58"]
[EventDate "2024.03.28"]
[EventType "schev"]
[EventCountry "USA"]
[SourceTitle "playchess.com"]
[Source "ChessBase"]
[SourceQuality "1"]
[TimeControl "5400+30"]

1. d4 {[%emt 0:05:09]} d5 {[%emt 0:00:38]} 2. c4 {[%emt 0:00:09]} e6 {[%emt 0:00:04]} 3. Nf3 {[%emt 0:00:09]} Nf6 {[%emt 0:00:30]} 4. g3 {[%emt 0:00:30]} dxc4 {[%emt 0:00:30]} 5. Qa4+ {[%emt 0:00:30]} Nbd7 {[%emt 0:00:30]} 6. Bg2 {[%emt 0:00:30]} a6 {[%emt 0:00:30]} 7. Qxc4 {[%emt 0:00:30]} b5 {[%emt 0:00:30]} 8. Qc6 {[%emt 0:00:30]} Ra7 {[%emt 0:00:30]} 9. Bf4 {[%emt 0:00:30]} Bb7 {[%emt 0:00:30]} 10. Qc1 {[%emt 0:00:30]} c5 {[%emt 0:00:30]} 11. dxc5 {[%emt 0:00:30]} Bxc5 {[%emt 0:00:30]} 12. O-O {[%emt 0:00:30]} O-O {[%emt 0:00:30]} 13. Ne5 {[%emt 0:00:30]} Bxg2 {[%emt 0:00:30]} 14. Kxg2 {[%emt 0:00:30]} Qa8+ {[%emt 0:07:49]} 15. Kg1 {[%emt 0:31:00]} Rc8 {[%emt 0:04:44]} 16. Qd1 {[%emt 0:07:24]} Nxe5 {[%emt 0:06:31]} 17. Bxe5 {[%emt 0:00:13]} Rd7 {[%emt 0:00:23]} 18. Qe1 {[%emt 0:08:51]} Ng4 {[%emt 0:02:05]} 19. Bf4 {[%emt 0:02:29]} Rd5 {[%emt 0:16:04]} 20. h3 {[%emt 0:12:18]} Rh5 {[%emt 0:02:13]} 21. h4 {[%emt 0:01:08]} h6 {[%emt 0:01:52]} 22. e4 {[%emt 0:02:53]} e5 {[%emt 0:11:55]} 23. Bd2 {[%emt 0:04:18]} g5 {[%emt 0:04:53]} 24. Qe2 {[%emt 0:01:40]} Nf6 {[%emt 0:00:39]} 25. Nc3 {[%emt 0:01:26]} Rd8 {[%emt 0:02:27]} 26. Nd5 {[%emt 0:05:00]} Rxd5 {[%emt 0:03:30]} 27. exd5 {[%emt 0:00:25]} gxh4 {[%emt 0:00:15]} 28. g4 {[%emt 0:01:49]} Qxd5 {[%emt 0:00:16]} 29. gxh5 {[%emt 0:02:09]} h3 {[%emt 0:00:06]} 0-1

[Event "1000GM Spring Break Schev-B 2024"]
[Site "San Jose"]
[Date "2024.04.01"]
[Round "4.1"]
[White "Solis Castro, Angel Alejan"]
[Black "Karunakaran, Kapilan"]
[Result "1-0"]
[ECO "A07"]
[WhiteElo "2071"]
[BlackElo "1965"]
[Annotator "RC"]
[PlyCount "61"]
[EventDate "2024.03.28"]
[EventType "schev"]
[EventCountry "USA"]
[SourceTitle "playchess.com"]
[Source "ChessBase"]
[SourceQuality "1"]
[TimeControl "5400+30"]

1. Nf3 {[%emt 0:02:26]} Nf6 {[%emt 0:00:48]} 2. g3 {[%emt 0:01:23]} d5 {[%emt 0:00:32]} 3. b3 {[%emt 0:01:15]} Bf5 {[%emt 0:00:41]} 4. Bb2 {[%emt 0:01:22]} h6 {[%emt 0:00:16]} 5. Bg2 {[%emt 0:01:19]} e6 {[%emt 0:00:14]} 6. O-O {[%emt 0:01:11]} c5 {[%emt 0:00:25]} 7. d3 {[%emt 0:01:42]} Be7 {[%emt 0:00:35]} 8. Nbd2 {[%emt 0:01:23]} O-O {[%emt 0:00:49]} 9. Ne5 {[%emt 0:01:47]} Qc7 {[%emt 0:09:26]} 10. e4 {[%emt 0:02:45]} Bh7 {[%emt 0:04:55]} 11. f4 {[%emt 0:02:12]} Nc6 {[%emt 0:06:14]} 12. Ng4 {[%emt 0:04:15]} d4 {[%emt 0:14:32]} 13. f5 {[%emt 0:06:50]} Nxg4 {[%emt 0:08:18]} 14. Qxg4 {[%emt 0:00:05]} Ne5 {[%emt 0:00:09]} 15. Qe2 {[%emt 0:00:06]} Qb6 {[%emt 0:04:22]} 16. Bc1 {[%emt 0:01:22]} Bf6 {[%emt 0:08:04]} 17. Nc4 {[%emt 0:01:17]} Qc6 {[%emt 0:10:04]} 18. Nxe5 {[%emt 0:00:53]} Bxe5 {[%emt 0:00:06]} 19. f6 {[%emt 0:00:42]} Bg6 {[%emt 0:06:20]} 20. h4 {[%emt 0:04:47]} h5 {[%emt 0:08:24]} 21. Bg5 {[%emt 0:08:43]} Qc7 {[%emt 0:05:34]} 22. g4 {[%emt 0:02:21]} hxg4 {[%emt 0:04:46]} 23. Qxg4 {[%emt 0:01:39]} Kh8 {[%emt 0:00:24]} 24. h5 {[%emt 0:03:58]} Bh7 {[%emt 0:00:05]} 25. fxg7+ {[%emt 0:00:12]} Bxg7 {[%emt 0:00:12]} 26. Rf6 {[%emt 0:00:57]} Qe5 {[%emt 0:04:15]} 27. Qh4 {[%emt 0:00:55]} Rg8 {[%emt 0:02:07]} 28. Rxf7 {[%emt 0:00:20]} Raf8 {[%emt 0:01:11]} 29. Raf1 {[%emt 0:00:57]} Rxf7 {[%emt 0:00:15]} 30. Rxf7 {[%emt 0:00:08]} Re8 {[%emt 0:00:43]} 31. Bf4 {[%emt 0:00:13]} 1-0

[Event "1000GM Spring Break Schev-B 2024"]
[Site "San Jose"]
[Date "2024.04.01"]
[Round "4.2"]
[White "Gongora Montes, Benjamin"]
[Black "Pulijala, Akshaj"]
[Result "1/2-1/2"]
[ECO "D03"]
[WhiteElo "2106"]
[BlackElo "1815"]
[Annotator "RC"]
[PlyCount "49"]
[EventDate "2024.03.28"]
[EventType "schev"]
[EventCountry "USA"]
[SourceTitle "playchess.com"]
[Source "ChessBase"]
[SourceQuality "1"]
[TimeControl "5400+30"]

1. d4 {[%emt 0:00:33]} Nf6 {[%emt 0:00:15]} 2. Nf3 {[%emt 0:00:30]} g6 {[%emt 0:00:30]} 3. Bg5 {[%emt 0:00:30]} Bg7 {[%emt 0:00:30]} 4. Nbd2 {[%emt 0:00:30]} c5 {[%emt 0:00:30]} 5. e3 {[%emt 0:00:30]} d5 {[%emt 0:00:30]} 6. c3 {[%emt 0:00:30]} b6 {[%emt 0:00:30]} 7. Be2 {[%emt 0:00:30]} O-O {[%emt 0:00:30]} 8. O-O {[%emt 0:00:30]} Bb7 {[%emt 0:08:38]} 9. a4 {[%emt 0:00:00]} Nbd7 {[%emt 0:00:30]} 10. Qb1 {[%emt 0:00:03]} a6 {[%emt 0:00:30]} 11. h3 {[%emt 0:00:30]} Re8 {[%emt 0:00:30]} 12. Re1 {[%emt 0:00:30]} e5 {[%emt 0:00:30]} 13. dxe5 {[%emt 0:00:30]} Nxe5 {[%emt 0:00:30]} 14. Nxe5 {[%emt 0:00:30]} Rxe5 {[%emt 0:00:30]} 15. Bf4 {[%emt 0:06:00]} Re6 {[%emt 0:14:47]} 16. Bf3 Qe7 {[%emt 0:04:40]} 17. c4 Rd8 {[%emt 0:04:21]} 18. Rd1 {[%emt 0:18:35]} d4 19. Bxb7 {[%emt 0:00:17]} Qxb7 {[%emt 0:01:00]} 20. exd4 {[%emt 0:00:22]} cxd4 {[%emt 0:01:50]} 21. b4 {[%emt 0:00:30]} Ne4 {[%emt 0:00:30]} 22. Nxe4 {[%emt 0:00:30]} Rxe4 {[%emt 0:00:30]} 23. Bd2 {[%emt 1:09:40]} d3 {[%emt 0:59:29]} 24. Ra3 {[%emt 0:00:30]} Rxc4 {[%emt 0:00:30]} 25. Ra1 {[%emt 0:00:00]} 1/2-1/2

[Event "1000GM Spring Break Schev-B 2024"]
[Site "San Jose"]
[Date "2024.04.01"]
[Round "4.3"]
[White "Sawhney, Yuvraj Singh"]
[Black "Dominguez Aguilar, Guillermo"]
[Result "0-1"]
[ECO "B31"]
[WhiteElo "1846"]
[BlackElo "2284"]
[Annotator "RC"]
[PlyCount "70"]
[EventDate "2024.03.28"]
[EventType "schev"]
[EventCountry "USA"]
[SourceTitle "playchess.com"]
[Source "ChessBase"]
[SourceQuality "1"]
[TimeControl "5400+30"]

1. e4 {[%emt 0:01:20]} c5 {[%emt 0:00:06]} 2. Nf3 {[%emt 0:00:16]} Nc6 {[%emt 0:00:10]} 3. Bb5 {[%emt 0:00:20]} Nf6 {[%emt 0:00:16]} 4. Qe2 {[%emt 0:01:35]} g6 {[%emt 0:01:31]} 5. O-O {[%emt 0:00:30]} Bg7 {[%emt 0:00:17]} 6. c3 {[%emt 0:00:06]} O-O {[%emt 0:00:19]} 7. d4 {[%emt 0:00:59]} cxd4 {[%emt 0:00:25]} 8. cxd4 {[%emt 0:00:04]} d6 {[%emt 0:00:06]} 9. Nc3 {[%emt 0:00:54]} Bg4 {[%emt 0:00:12]} 10. Be3 {[%emt 0:01:52]} Nd7 {[%emt 0:00:28]} 11. Rad1 {[%emt 0:02:46]} e5 {[%emt 0:00:11]} 12. Bxc6 {[%emt 0:03:24]} bxc6 {[%emt 0:00:01]} 13. h3 {[%emt 0:00:31]} Bxf3 {[%emt 0:00:11]} 14. Qxf3 {[%emt 0:00:05]} Qb6 {[%emt 0:02:01]} 15. dxe5 {[%emt 0:10:45]} Qxb2 {[%emt 0:00:45]} 16. Bc1 {[%emt 0:03:11]} Qb4 {[%emt 0:02:22]} 17. a3 {[%emt 0:06:22]} Qc5 {[%emt 0:04:41]} 18. Na4 {[%emt 0:03:08]} Qb5 {[%emt 0:08:28]} 19. Rxd6 {[%emt 0:06:10]} Nxe5 {[%emt 0:00:13]} 20. Qd1 {[%emt 0:00:25]} Nc4 {[%emt 0:00:12]} 21. Rd3 {[%emt 0:03:44]} Rfe8 {[%emt 0:00:32]} 22. Qc2 {[%emt 0:01:17]} Rxe4 {[%emt 0:03:46]} 23. Nc3 {[%emt 0:00:12]} Bxc3 {[%emt 0:00:19]} 24. Rxc3 {[%emt 0:00:05]} Rae8 {[%emt 0:00:21]} 25. Bh6 {[%emt 0:02:11]} Nd6 {[%emt 0:01:05]} 26. Rb1 {[%emt 0:02:16]} Re1+ {[%emt 0:00:35]} 27. Rxe1 {[%emt 0:00:18]} Rxe1+ {[%emt 0:00:09]} 28. Kh2 {[%emt 0:00:04]} Qe5+ {[%emt 0:01:05]} 29. f4 {[%emt 0:00:34]} Qd4 {[%emt 0:02:19]} 30. Rxc6 {[%emt 0:03:54]} Qg1+ {[%emt 0:00:12]} 31. Kg3 {[%emt 0:00:08]} Re3+ {[%emt 0:06:56]} 32. Kg4 {[%emt 0:01:26]} f5+ {[%emt 0:00:13]} 33. Kh4 {[%emt 0:01:47]} Qe1+ {[%emt 0:00:11]} 34. Kg5 {[%emt 0:00:07]} Rg3+ {[%emt 0:00:37]} 35. Kf6 {[%emt 0:00:17]} Ne8# {[%emt 0:00:04]} 0-1

[Event "1000GM Spring Break Schev-B 2024"]
[Site "San Jose"]
[Date "2024.04.01"]
[Round "4.4"]
[White "Xia, Joshua"]
[Black "Varela Velazquez, Carlos Francisco"]
[Result "1/2-1/2"]
[ECO "C77"]
[WhiteElo "1938"]
[BlackElo "2113"]
[Annotator "RC"]
[PlyCount "96"]
[EventDate "2024.03.28"]
[EventType "schev"]
[EventCountry "USA"]
[SourceTitle "playchess.com"]
[Source "ChessBase"]
[SourceQuality "1"]
[TimeControl "5400+30"]

1. e4 {[%emt 0:00:02]} e5 {[%emt 0:00:08]} 2. Nf3 {[%emt 0:00:05]} Nc6 {[%emt 0:00:04]} 3. Bb5 {[%emt 0:00:04]} a6 {[%emt 0:00:04]} 4. Ba4 {[%emt 0:00:03]} Nf6 {[%emt 0:00:04]} 5. O-O {[%emt 0:00:05]} Be7 {[%emt 0:00:02]} 6. d3 {[%emt 0:00:06]} b5 {[%emt 0:00:09]} 7. Bb3 {[%emt 0:00:04]} d6 {[%emt 0:00:28]} 8. a3 {[%emt 0:00:04]} O-O {[%emt 0:00:09]} 9. Nc3 {[%emt 0:00:04]} Na5 {[%emt 0:00:10]} 10. Ba2 {[%emt 0:00:05]} Be6 {[%emt 0:00:08]} 11. Nd5 {[%emt 0:00:47]} Nxd5 {[%emt 0:00:18]} 12. exd5 {[%emt 0:00:03]} Bg4 {[%emt 0:00:52]} 13. Re1 {[%emt 0:04:59]} Nb7 {[%emt 0:17:00]} 14. Qe2 {[%emt 0:05:14]} f5 {[%emt 0:11:19]} 15. c3 {[%emt 0:05:33]} Qe8 {[%emt 0:08:53]} 16. Qe3 {[%emt 0:10:29]} f4 {[%emt 0:20:06]} 17. Qe2 {[%emt 0:05:54]} Qh5 {[%emt 0:01:48]} 18. h3 {[%emt 0:05:17]} Bxf3 {[%emt 0:00:56]} 19. Qxf3 {[%emt 0:00:25]} Qxf3 {[%emt 0:00:06]} 20. gxf3 {[%emt 0:00:08]} Bh4 {[%emt 0:04:24]} 21. b4 {[%emt 0:00:53]} a5 {[%emt 0:02:30]} 22. Bb2 {[%emt 0:00:34]} Nd8 {[%emt 0:03:15]} 23. c4 {[%emt 0:00:48]} axb4 {[%emt 0:04:19]} 24. axb4 {[%emt 0:01:32]} Ra4 {[%emt 0:03:59]} 25. c5 {[%emt 0:12:03]} Nf7 {[%emt 0:01:39]} 26. Bb3 {[%emt 0:10:32]} Rxb4 {[%emt 0:03:55]} 27. Ra3 {[%emt 0:00:43]} dxc5 {[%emt 0:00:27]} 28. Bc3 {[%emt 0:00:41]} Rxb3 {[%emt 0:00:15]} 29. Rxb3 {[%emt 0:00:16]} b4 {[%emt 0:00:11]} 30. Bxe5 {[%emt 0:04:42]} Re8 {[%emt 0:00:12]} 31. Bc3 {[%emt 0:00:07]} Rxe1+ {[%emt 0:00:08]} 32. Bxe1 {[%emt 0:00:04]} Bf6 {[%emt 0:00:07]} 33. Bd2 {[%emt 0:05:47]} g5 {[%emt 0:00:18]} 34. Bc1 {[%emt 0:00:46]} Ne5 {[%emt 0:03:53]} 35. Kg2 {[%emt 0:00:36]} Ng6 {[%emt 0:02:27]} 36. Kf1 {[%emt 0:01:03]} Be7 {[%emt 0:02:01]} 37. Ke2 {[%emt 0:01:42]} Bd6 {[%emt 0:00:34]} 38. Rb2 {[%emt 0:10:58]} Ne7 {[%emt 0:02:37]} 39. Ra2 {[%emt 0:00:15]} h5 {[%emt 0:02:31]} 40. Ra8+ {[%emt 0:00:41]} Kf7 {[%emt 0:00:04]} 41. Rh8 {[%emt 0:00:59]} h4 {[%emt 0:01:33]} 42. Bb2 {[%emt 0:00:46]} Nxd5 {[%emt 0:00:05]} 43. Rh7+ {[%emt 0:00:25]} Kg6 {[%emt 0:07:52]} 44. Rg7+ {[%emt 0:00:32]} Kf5 {[%emt 0:00:00]} 45. Kd2 {[%emt 0:00:43]} Be7 {[%emt 0:00:00]} 46. Kc2 {[%emt 0:02:11]} Ke6 {[%emt 0:00:00]} 47. Kb3 {[%emt 0:00:24]} Nb6 {[%emt 0:02:00]} 48. Be5 {[%emt 0:14:16]} c6 {[%emt 0:00:30]} 1/2-1/2